fUST/lending_fUST_20250627
["ID","MTS","AMOUNT","RATE_DAILY","PERIOD"]
[368017843,1750993849857,-1686.90749318,0.00021616,2]
[368017844,1750993849866,-151.0,0.00021616,2]
[368017845,1750993849876,-151.0,0.00021616,2]
[368017846,1750993849885,-151.0,0.00021616,2]
[368017847,1750993849898,-460.0,0.00021643,2]
[368017848,1750993849907,-460.0,0.00021643,2]
[368017849,1750993849916,-460.0,0.00021643,2]
[368017850,1750993849926,-460.0,0.00021643,2]
[368017851,1750993849935,-460.0,0.00021643,2]
[368017852,1750993849946,-460.0,0.00021643,2]
[368017853,1750993849955,-460.0,0.00021643,2]
[368017854,1750993849964,-460.0,0.00021643,2]
[368017855,1750993849975,-460.0,0.00021643,2]
[368017856,1750993849985,-728.52,0.00021643,2]
[368017857,1750993849995,-460.0,0.00021643,2]
[368017858,1750993850004,-460.0,0.00021643,2]
[368017859,1750993850014,-460.0,0.00021643,2]
[368017860,1750993850024,-460.0,0.00021643,2]
[368017861,1750993850035,-460.0,0.00021643,2]
[368017862,1750993850044,-1365.31,0.00021643,2]
[368017863,1750993850054,-460.0,0.00021643,2]
[368017864,1750993850063,-460.0,0.00021643,2]
[368017865,1750993850073,-460.0,0.00021643,2]
[368017866,1750993850082,-460.0,0.00021643,2]
[368017867,1750993850091,-460.0,0.00021643,2]
[368017868,1750993850100,-552.13,0.00021643,2]
[368017869,1750993850109,-760.17,0.00021643,2]
[368017870,1750993850119,-460.0,0.00021643,2]
[368017871,1750993850127,-460.0,0.00021643,2]
[368017872,1750993850136,-3614.19,0.00021643,2]
[368017873,1750993850146,-809.98,0.00021643,2]
[368017874,1750993850154,-460.0,0.00021643,2]
[368017875,1750993850163,-291.51208334,0.00021643,2]
[368017876,1750993850172,-623.74,0.00021643,2]
[368017877,1750993850181,-1358.43,0.00021643,2]
[368017878,1750993850190,-460.0,0.00021643,2]
[368017879,1750993850199,-460.0,0.00021643,2]
[368017880,1750993850209,-574.34,0.00021643,2]
[368017881,1750993850218,-673.03,0.00021643,2]
[368017882,1750993850227,-460.0,0.00021643,2]
[368017883,1750993850236,-879.15,0.00021643,2]
[368017884,1750993850245,-1444.88,0.00021643,2]
[368017885,1750993850252,-735.15,0.00021643,2]
[368017886,1750993850260,-460.0,0.00021643,2]
[368017887,1750993850268,-1769.59,0.00021643,2]
[368017888,1750993850277,-828.44,0.00021643,2]
[368017889,1750993850284,-460.0,0.00021643,2]
[368017890,1750993850292,-460.0,0.00021643,2]
[368017891,1750993850299,-619.94,0.00021643,2]
[368017892,1750993850307,-475.92,0.00021643,2]
[368017893,1750993850315,-460.0,0.00021643,2]
[368017894,1750993850324,-1031.34,0.00021643,2]
[368017895,1750993850332,-460.0,0.00021643,2]
[368017896,1750993850341,-1679.36,0.00021643,2]
[368017897,1750993850349,-503.74,0.00021643,2]
[368017898,1750993850358,-460.0,0.00021643,2]
[368017899,1750993850366,-1000.09,0.00021643,2]
[368017900,1750993850374,-1715.73,0.00021643,2]
[368017901,1750993850381,-460.0,0.00021643,2]
[368017902,1750993850390,-466.93,0.00021643,2]
[368017903,1750993850397,-555.13,0.00021643,2]
[368017904,1750993850406,-2909.1,0.00021643,2]
[368017905,1750993850414,-856.07,0.00021643,2]
[368017906,1750993850422,-639.15,0.00021643,2]
[368017907,1750993850430,-460.0,0.00021643,2]
[368017908,1750993850438,-460.0,0.00021643,2]
[368017909,1750993850446,-648.7,0.00021643,2]
[368017910,1750993850454,-1295.71,0.00021643,2]
[368017911,1750993850462,-460.0,0.00021643,2]
[368017912,1750993850471,-589.72288255,0.00021643,2]
[368017913,1750993850480,-2225.69,0.00021643,2]
[368017914,1750993850490,-906.19,0.00021643,2]
[368017915,1750993850499,-2569.75,0.00021643,2]
[368017916,1750993850508,-460.0,0.00021643,2]
[368017917,1750993850517,-804.78,0.00021643,2]
[368017918,1750993850529,-460.0,0.00021643,2]
[368017919,1750993850539,-874.44,0.00021643,2]
[368017920,1750993850548,-460.0,0.00021643,2]
[368017921,1750993850558,-2666.41,0.00021643,2]
[368017922,1750993850568,-699.76,0.00021643,2]
[368017923,1750993850577,-851.37,0.00021643,2]
[368017924,1750993850587,-460.0,0.00021643,2]
[368017925,1750993850596,-460.0,0.00021643,2]
[368017926,1750993850606,-460.0,0.00021643,2]
[368017927,1750993850615,-358.79405316,0.00021643,2]
[368017928,1750993850625,-460.0,0.00021643,2]
[368017929,1750993850635,-460.0,0.00021643,2]
[368017930,1750993850644,-460.0,0.00021643,2]
[368017931,1750993850653,-1321.99,0.00021643,2]
[368017932,1750993850663,-779.38,0.00021643,2]
[368017933,1750993850672,-460.0,0.00021643,2]
[368017934,1750993850682,-1808.0,0.00021643,2]
[368017935,1750993850691,-677.46,0.00021643,2]
[368017936,1750993850701,-2316.58,0.00021643,2]
[368017937,1750993850711,-4012.69,0.00021643,2]
[368017938,1750993850720,-160.0,0.00021654,5]
[368017939,1750993850730,-151.0,0.000217,3]
[368017940,1750993850740,-5491.92,0.000217,2]
[368017941,1750993850750,-205.0,0.00021727,2]
[368017942,1750993850759,-1043.91482968,0.00021736,2]
[368017943,1750993850768,-166.08289692,0.00021753,2]
[368017944,1750993850778,-268.190197,0.00021762,2]
[368017945,1750993850787,-268.190197,0.00021762,2]
[368017946,1750993850796,-151.0,0.00021762,2]
[368017947,1750993850806,-151.0,0.00021762,2]
[368017948,1750993850815,-151.0,0.00021762,2]
[368017949,1750993850824,-272.302086,0.00021762,2]
[368017950,1750993850833,-6029.2245673,0.00021762,5]
[368017951,1750993850843,-888.99803573,0.0002178,2]
[368017952,1750993850852,-160.0,0.00021795,6]
[368017953,1750993850861,-151.0,0.00021799,4]
[368017954,1750993850871,-153.0,0.00021836,2]
[368017955,1750993850879,-177.4788171,0.00021836,2]
[368017956,1750993850889,-159.2394861,0.00021836,2]
[368017957,1750993850902,-177.4788171,0.00021836,2]
[368017958,1750993850911,-153.0,0.00021836,2]
[368017959,1750993850920,-575.118961,0.00021836,2]
[368017960,1750993850929,-244.39901772,0.00021879,2]
[368017961,1750993850939,-200.0,0.00021879,2]
[368017962,1750993850948,-167212.39294804,0.0002188,5]
[368017963,1750993850957,-151.721006,0.0002188,2]
[368017964,1750993850966,-151.0,0.0002188,2]
[368017965,1750993850975,-254.863323,0.0002188,2]
[368017966,1750993850985,-151.0,0.0002188,2]
[368017967,1750993850994,-151.0,0.0002188,2]
[368017968,1750993851003,-151.0,0.0002188,2]
[368017969,1750993851012,-151.0,0.0002188,2]
[368017970,1750993851021,-151.0,0.0002188,2]
[368017971,1750993851031,-151.0,0.0002188,2]
[368017972,1750993851040,-151.0,0.0002188,2]
[368017973,1750993851049,-151.0,0.0002188,2]
[368017974,1750993851058,-151.0,0.0002188,2]
[368017975,1750993851068,-151.0,0.0002188,2]
[368017976,1750993851077,-151.0,0.0002188,2]
[368017977,1750993851086,-151.0,0.0002188,2]
[368017978,1750993851095,-151.0,0.0002188,2]
[368017979,1750993851104,-189.977727,0.0002188,2]
[368017980,1750993851113,-151.0,0.0002188,2]
[368017981,1750993851123,-151.0,0.0002188,2]
[368017982,1750993851132,-455.23396,0.0002188,2]
[368017983,1750993851142,-455.23396,0.0002188,2]
[368017984,1750993851151,-151.0,0.0002188,2]
[368017985,1750993851160,-203.979392,0.0002188,2]
[368017986,1750993851170,-151.0,0.0002188,2]
[368017987,1750993851180,-151.0,0.0002188,2]
[368017988,1750993851189,-151.0,0.0002188,2]
[368017989,1750993851198,-151.0,0.0002188,2]
[368017990,1750993851207,-226.652773,0.0002188,2]
[368017991,1750993851216,-226.652773,0.0002188,2]
[368017992,1750993851225,-151.0,0.0002188,2]
[368017993,1750993851235,-1462.247868,0.0002188,2]
[368017994,1750993851244,-1462.247868,0.0002188,2]
[368017995,1750993851254,-151.0,0.000219,4]
[368017996,1750993851263,-460.0,0.00021917,2]
[368017997,1750993851272,-460.0,0.00021917,2]
[368017998,1750993851282,-460.0,0.00021917,2]
[368017999,1750993851291,-500.0,0.00021917,2]
[368018000,1750993851406,-460.0,0.00021917,2]
[368018001,1750993851416,-460.0,0.00021917,2]
[368018002,1750993851425,-460.0,0.00021917,2]
[368018003,1750993851435,-460.0,0.00021917,2]
[368018004,1750993851444,-460.0,0.00021917,2]
[368018005,1750993851454,-500.0,0.00021917,2]
[368018006,1750993851463,-500.0,0.00021917,2]
[368018007,1750993851473,-500.0,0.00021917,2]
[368018008,1750993851483,-500.0,0.00021917,2]
[368018009,1750993851492,-500.0,0.00021917,2]
[368018010,1750993851501,-512.51508435,0.00021917,2]
[368018011,1750993851511,-460.0,0.00021917,2]
[368018012,1750993851520,-460.0,0.00021917,2]
[368018013,1750993851530,-460.0,0.00021917,2]
[368018014,1750993851539,-728.52,0.00021917,2]
[368018015,1750993851548,-460.0,0.00021917,2]
[368018016,1750993851556,-460.0,0.00021917,2]
[368018017,1750993851565,-460.0,0.00021917,2]
[368018018,1750993851573,-460.0,0.00021917,2]
[368018019,1750993851582,-460.0,0.00021917,2]
[368018020,1750993851590,-1365.31,0.00021917,2]
[368018021,1750993851598,-570.01711321,0.00021917,2]
[368018022,1750993851606,-460.0,0.00021917,2]
[368018023,1750993851614,-460.0,0.00021917,2]
[368018024,1750993851623,-165.7531056,0.00021917,2]
[368018025,1750993851632,-460.0,0.00021917,2]
[368018026,1750993851641,-552.13,0.00021917,2]
[368018027,1750993851650,-760.17,0.00021917,2]
[368018028,1750993851659,-460.0,0.00021917,2]
[368018029,1750993851668,-460.0,0.00021917,2]
[368018030,1750993851677,-3614.19,0.00021917,2]
[368018031,1750993851687,-809.98,0.00021917,2]
[368018032,1750993851697,-460.0,0.00021917,2]
[368018033,1750993851706,-623.74,0.00021917,2]
[368018034,1750993851716,-1358.43,0.00021917,2]
[368018035,1750993851726,-460.0,0.00021917,2]
[368018036,1750993851735,-460.0,0.00021917,2]
[368018037,1750993851742,-574.34,0.00021917,2]
[368018038,1750993851751,-673.03,0.00021917,2]
[368018039,1750993851758,-460.0,0.00021917,2]
[368018040,1750993851767,-879.15,0.00021917,2]
[368018041,1750993851777,-1444.88,0.00021917,2]
[368018042,1750993851786,-460.0,0.00021917,2]
[368018043,1750993851795,-735.15,0.00021917,2]
[368018044,1750993851805,-1769.59,0.00021917,2]
[368018045,1750993851814,-828.44,0.00021917,2]
[368018046,1750993851823,-460.0,0.00021917,2]
[368018047,1750993851832,-460.0,0.00021917,2]
[368018048,1750993851841,-619.94,0.00021917,2]
[368018049,1750993851851,-475.92,0.00021917,2]
[368018050,1750993851859,-460.0,0.00021917,2]
[368018051,1750993851869,-1031.34,0.00021917,2]
[368018052,1750993851878,-460.0,0.00021917,2]
[368018053,1750993851887,-460.0,0.00021917,2]
[368018054,1750993851900,-542.11897491,0.00021917,2]
[368018055,1750993851909,-1679.36,0.00021917,2]
[368018056,1750993851919,-503.74,0.00021917,2]
[368018057,1750993851928,-460.0,0.00021917,2]
[368018058,1750993851939,-1000.09,0.00021917,2]
[368018059,1750993851948,-1715.73,0.00021917,2]
[368018060,1750993851958,-460.0,0.00021917,2]
[368018061,1750993851967,-466.93,0.00021917,2]
[368018062,1750993851978,-555.13,0.00021917,2]
[368018063,1750993851989,-2909.1,0.00021917,2]
[368018064,1750993851999,-856.07,0.00021917,2]
[368018065,1750993852008,-639.15,0.00021917,2]
[368018066,1750993852017,-460.0,0.00021917,2]
[368018067,1750993852027,-460.0,0.00021917,2]
[368018068,1750993852037,-648.7,0.00021917,2]
[368018069,1750993852046,-1295.71,0.00021917,2]
[368018070,1750993852055,-460.0,0.00021917,2]
[368018071,1750993852064,-268.190197,0.00021917,2]
[368018072,1750993852074,-268.190197,0.00021917,2]
[368018073,1750993852083,-2225.69,0.00021917,2]
[368018074,1750993852092,-906.19,0.00021917,2]
[368018075,1750993852102,-2569.75,0.00021917,2]
[368018076,1750993852111,-460.0,0.00021917,2]
[368018077,1750993852120,-804.78,0.00021917,2]
[368018078,1750993852129,-460.0,0.00021917,2]
[368018079,1750993852138,-874.44,0.00021917,2]
[368018080,1750993852147,-460.0,0.00021917,2]
[368018081,1750993852156,-2666.41,0.00021917,2]
[368018082,1750993852166,-699.76,0.00021917,2]
[368018083,1750993852176,-851.37,0.00021917,2]
[368018084,1750993852185,-460.0,0.00021917,2]
[368018085,1750993852194,-460.0,0.00021917,2]
[368018086,1750993852203,-151.0,0.00021917,2]
[368018087,1750993852213,-151.0,0.00021917,2]
[368018088,1750993852222,-460.0,0.00021917,2]
[368018089,1750993852231,-460.0,0.00021917,2]
[368018090,1750993852240,-460.0,0.00021917,2]
[368018091,1750993852249,-460.0,0.00021917,2]
[368018092,1750993852258,-1321.99,0.00021917,2]
[368018093,1750993852267,-779.38,0.00021917,2]
[368018094,1750993852277,-151.0,0.00021917,2]
[368018095,1750993852286,-460.0,0.00021917,2]
[368018096,1750993852296,-1808.0,0.00021917,2]
[368018097,1750993852305,-500.0,0.00021917,2]
[368018098,1750993852314,-677.46,0.00021917,2]
[368018099,1750993852323,-500.0,0.00021917,2]
[368018100,1750993852333,-203.53721826,0.00021917,2]
[368018101,1750993852342,-2316.58,0.00021917,2]
[368018102,1750993852352,-4012.69,0.00021917,2]
[368018103,1750993852361,-151.0,0.00021918,2]
[368018104,1750993852370,-151.0,0.00021918,2]
[368018105,1750993852379,-151.0,0.00021918,2]
[368018106,1750993852388,-151.0,0.00021918,2]
[368018107,1750993852397,-151.0,0.00021918,2]
[368018108,1750993852407,-151.0,0.00021918,2]
[368018109,1750993852415,-151.0,0.00021918,2]
[368018110,1750993852424,-151.0,0.00021918,2]
[368018111,1750993852432,-278.093866,0.00021918,2]
[368018112,1750993852440,-150.0,0.00021918,2]
[368018113,1750993852448,-200.76911296,0.00021918,2]
[368018114,1750993852455,-2049.34,0.00021929,2]
[368018115,1750993852464,-160.0,0.00021936,7]
[368018116,1750993852472,-1362.996031,0.0002194,5]
[368018117,1750993852480,-1000.0,0.0002196,5]
[368018118,1750993852489,-6029.2245673,0.00021969,6]
[368018119,1750993852498,-500.0,0.00021973,2]
[368018120,1750993852507,-555.44302393,0.00021973,2]
[368018121,1750993852516,-500.0,0.00021973,2]
[368018122,1750993852526,-500.0,0.00021973,2]
[368018123,1750993852541,-500.0,0.00021973,2]
[368018124,1750993852556,-500.0,0.00021973,2]
[368018125,1750993852571,-500.53113897,0.00021973,2]
[368018126,1750993852583,-500.0,0.00021973,2]
[368018127,1750993852596,-500.0,0.00021973,2]
[368018128,1750993852609,-500.37122373,0.00021973,2]
[368018129,1750993852622,-500.0,0.00021973,2]
[368018130,1750993852636,-500.0,0.00021973,2]
[368018131,1750993852649,-500.0,0.00021973,2]
[368018132,1750993852663,-500.0,0.00021973,2]
[368018133,1750993852677,-563.67730811,0.00021973,2]
[368018134,1750993852689,-500.0,0.00021973,2]
[368018135,1750993852702,-500.0,0.00021973,2]
[368018136,1750993852715,-500.71515481,0.00021973,2]
[368018137,1750993852727,-500.22466003,0.00021973,2]
[368018138,1750993852742,-500.0,0.00021973,2]
[368018139,1750993852755,-583.40186922,0.00021973,2]
[368018140,1750993852767,-500.0,0.00021973,2]
[368018141,1750993852779,-500.0,0.00021973,2]
[368018142,1750993852792,-500.0,0.00021973,2]
[368018143,1750993852804,-501.11331778,0.00021973,2]
[368018144,1750993852817,-500.83962474,0.00021973,2]
[368018145,1750993852831,-500.0,0.00021973,2]
[368018146,1750993852844,-500.0,0.00021973,2]
[368018147,1750993852857,-500.51212004,0.00021973,2]
[368018148,1750993852871,-501.11126588,0.00021973,2]
[368018149,1750993852885,-501.26165413,0.00021973,2]
[368018150,1750993852898,-500.0,0.00021973,2]
[368018151,1750993852909,-500.62621951,0.00021973,2]
[368018152,1750993852920,-600.0,0.00021973,2]
[368018153,1750993852933,-500.0,0.00021973,2]
[368018154,1750993852947,-500.39283988,0.00021973,2]
[368018155,1750993852959,-500.0,0.00021973,2]
[368018156,1750993852970,-500.0,0.00021973,2]
[368018157,1750993852982,-501.98846051,0.00021973,2]
[368018158,1750993852994,-500.0,0.00021973,2]
[368018159,1750993853007,-500.0,0.00021973,2]
[368018160,1750993853017,-400.89730225,0.00021973,2]
[368018161,1750993853028,-500.69103289,0.00021973,2]
[368018162,1750993853039,-500.98989432,0.00021973,2]
[368018163,1750993853050,-500.89410572,0.00021973,2]
[368018164,1750993853062,-501.12641039,0.00021973,2]
[368018165,1750993853074,-500.0,0.00021973,2]
[368018166,1750993853086,-500.0,0.00021973,2]
[368018167,1750993853097,-500.0,0.00021973,2]
[368018168,1750993853107,-500.0,0.00021973,2]
[368018169,1750993853116,-500.0,0.00021973,2]
[368018170,1750993853126,-500.0,0.00021973,2]
[368018171,1750993853136,-500.0,0.00021973,2]
[368018172,1750993853146,-500.0,0.00021973,2]
[368018173,1750993853157,-500.0,0.00021973,2]
[368018174,1750993853169,-507.06280126,0.00021973,2]
[368018175,1750993853180,-548.35474805,0.00021973,2]
[368018176,1750993853191,-500.0,0.00021973,2]
[368018177,1750993853203,-616.95694176,0.00021973,2]
[368018178,1750993853214,-500.0,0.00021973,2]
[368018179,1750993853225,-500.0,0.00021973,2]
[368018180,1750993853237,-501.01515382,0.00021973,2]
[368018181,1750993853248,-165.163624,0.0002198,5]
[368018182,1750993853259,-1000.0,0.0002198,5]
[368018183,1750993853270,-51160.3947104,0.00021999,7]
[368018184,1750993853282,-151.0,0.00021999,7]
[368018185,1750993853293,-151.0,0.00021999,7]
[368018186,1750993853306,-151.0,0.00021999,7]
[368018187,1750993853318,-175.805246,0.00021999,7]
[368018188,1750993853329,-151.0,0.00021999,7]
[368018189,1750993853341,-151.0,0.00021999,7]
[368018190,1750993853352,-455.23396,0.00021999,2]
[368018191,1750993853364,-455.23396,0.00021999,2]
[368018192,1750993853374,-151.0,0.00021999,7]
[368018193,1750993853386,-151.0,0.00021999,7]
[368018194,1750993853397,-151.0,0.00021999,7]
[368018195,1750993853408,-226.652773,0.00021999,7]
[368018196,1750993853419,-226.652773,0.00021999,7]
[368018197,1750993853431,-1462.247868,0.00021999,7]
[368018198,1750993853443,-1462.247868,0.00021999,7]
[368018199,1750993853455,-9910.82352826,0.00022,2]
[368018200,1750993853466,-8850.83315289,0.00022,2]
[368018201,1750993853488,-217385.40050601,0.00022,2]
[368018202,1750993853654,-460.0,0.00019178,2]
[368018203,1750993853664,-460.0,0.00019452,2]
[368018204,1750993853674,-555.6,0.00021643,2]
[368018205,1750993853683,-555.6,0.00021917,2]
[368018206,1750993853692,-44236.15503118,0.00022,2]
[368018207,1750993853704,-967.330656,0.00022,2]
[368018208,1750993853715,-1626.53407425,0.00022,2]
[368018209,1750993853727,-267.26616415,0.00022,2]
[368018210,1750993853738,-60940.98164356,0.00022,2]
[368018211,1750993854118,-15.92,0.00019716,3]
[368018212,1750993854135,-767.05,0.00019716,3]
[368018213,1750993854145,-460.0,0.00019726,2]
[368018214,1750993854154,-460.0,0.0002,2]
[368018215,1750993854164,-460.0,0.00020273,2]
[368018216,1750993854173,-460.0,0.00020547,2]
[368018217,1750993854182,-151.0,0.000206,2]
[368018218,1750993854192,-460.0,0.00020821,2]
[368018219,1750993854202,-426.797496,0.00020821,2]
[368018220,1750993854211,-460.0,0.00021095,2]
[368018221,1750993854220,-411.06096452,0.00021369,2]
[368018222,1750993854230,-366.0585355,0.0002158,2]
[368018223,1750993854239,-28946.95135017,0.00022,2]
[368018224,1750993854249,-195332.90042626,0.00022,2]
[368018225,1750993854466,-460.0,0.00019178,2]
[368018226,1750993854476,-151.0,0.00021095,2]
[368018227,1750993854486,-426.797496,0.00021095,2]
[368018228,1750993854495,-151.0,0.00021427,2]
[368018229,1750993854505,-151.0,0.00021762,2]
[368018230,1750993854513,-151.0,0.00021917,2]
[368018231,1750993854522,-1778.9816019,0.00022,2]
[368018233,1750994262544,-151.0,0.00019075,2]
[368018234,1750994262566,-378.11862184,0.00019076,2]
[368018235,1750994262586,-160.0,0.00019169,2]
[368018236,1750994262607,-1200.0,0.00019175,2]
[368018237,1750994262628,-804.0,0.00019175,2]
[368018238,1750994262650,-300.0,0.00019175,2]
[368018239,1750994262672,-29999.0,0.00019176,7]
[368018240,1750994262693,-160.51178638,0.00019176,2]
[368018241,1750994262716,-500.0,0.00019176,2]
[368018242,1750994262736,-500.0,0.00019176,2]
[368018243,1750994262758,-500.0,0.00019176,2]
[368018244,1750994262781,-517.53372268,0.00019176,2]
[368018245,1750994262804,-500.0,0.00019176,2]
[368018246,1750994262824,-253.11830548,0.00019176,2]
[368018247,1750994262846,-639.26176515,0.00019176,2]
[368018248,1750994262867,-213.75309343,0.00019176,7]
[368018249,1750994262888,-11223.70270504,0.00019177,7]
[368018250,1750994298259,-300.0,0.00019176,2]
[368018251,1750994298283,-5700.0,0.00019177,7]
[368018253,1750994534239,400.0,0.00023,30]
[368018254,1750994578365,225.5,0.00023,30]
[368018255,1750994644577,500.0,0.00017227,2]
[368018256,1750994651312,500.0,0.00016366,2]
[368018257,1750994655901,500.0,0.00016176,2]
[368018258,1750994660726,500.0,0.00016176,2]
[368018259,1750994750556,-500.0,0.00018134,2]
[368018260,1750994750577,-160.369068,0.00018323,2]
[368018261,1750994750598,-126.65010814,0.00019088,2]
[368018262,1750994832572,-373.34989186,0.00019088,2]
[368018263,1750994832593,-40.65010814,0.00019161,2]
[368018341,1750995032432,-415.67516201,0.000189,2]
[368018343,1750995032441,-662.7115728,0.00018981,2]
[368018344,1750995032452,-321.42762435,0.00018981,2]
[368018345,1750995032462,-1463.3948,0.00019,20]
[368018346,1750995032471,-287.34055553,0.00019078,2]
[368018347,1750995032481,-13932.06237176,0.00019078,2]
[368018348,1750995032491,-887.36,0.00019168,3]
[368018349,1750995032500,-443.68,0.00019168,3]
[368018350,1750995032509,-221.84,0.00019168,3]
[368018351,1750995032519,-500.0,0.00019173,2]
[368018353,1750995032528,-587.0,0.00019176,2]
[368018355,1750995032537,-300.0,0.00019176,2]
[368018357,1750995032547,-300.0,0.00019176,2]
[368018358,1750995032556,-300.0,0.00019176,2]
[368018359,1750995032565,-13076.29729496,0.00019177,7]
[368018361,1750995032575,-582.25871729,0.00019177,2]
[368018363,1750995032585,-213.75309343,0.00019177,7]
[368018365,1750995032596,-320.14990287,0.00019178,2]
[368018367,1750995032605,-500.0,0.00019178,2]
[368018368,1750995032615,-460.0,0.00019178,2]
[368018369,1750995032625,-460.0,0.00019178,2]
[368018370,1750995032634,-460.0,0.00019178,2]
[368018371,1750995032643,-460.0,0.00019178,2]
[368018372,1750995032653,-466.01372817,0.00019178,2]
[368018373,1750995032662,-463.45845688,0.00019178,2]
[368018374,1750995032671,-30000.0,0.00019178,3]
[368018375,1750995032680,-460.0,0.00019178,2]
[368018376,1750995032690,-460.99164152,0.00019178,2]
[368018377,1750995032699,-466.73040109,0.00019178,2]
[368018378,1750995032709,-460.0,0.00019178,2]
[368018379,1750995032718,-460.0,0.00019178,2]
[368018380,1750995032727,-460.0,0.00019178,2]
[368018381,1750995032737,-451.70134152,0.00019178,2]
[368018382,1750995032746,-460.0,0.00019178,2]
[368018383,1750995032756,-465.66178869,0.00019178,2]
[368018384,1750995032765,-460.0,0.00019178,2]
[368018385,1750995032775,-454.8493496,0.00019178,2]
[368018386,1750995032786,-413.2593738,0.00019178,2]
[368018387,1750995032796,-460.0,0.00019178,2]
[368018388,1750995032806,-460.0,0.00019178,2]
[368018389,1750995032815,-460.0,0.00019178,2]
[368018390,1750995032825,-443.34060503,0.00019178,2]
[368018391,1750995032835,-461.54249329,0.00019178,2]
[368018392,1750995032844,-459.12593834,0.00019178,2]
[368018393,1750995032855,-460.0,0.00019178,2]
[368018394,1750995032865,-465.82875545,0.00019178,2]
[368018395,1750995032874,-460.0,0.00019178,2]
[368018396,1750995032884,-500.0,0.00019178,2]
[368018397,1750995032893,-361.68540913,0.00019178,2]
[368018398,1750995032903,-461.10482566,0.00019178,2]
[368018399,1750995032912,-461.37629502,0.00019178,2]
[368018400,1750995032922,-464.94395237,0.00019178,2]
[368018401,1750995032931,-460.0,0.00019178,2]
[368018402,1750995032940,-438.14025549,0.00019178,2]
[368018403,1750995032949,-460.0,0.00019178,2]
[368018404,1750995032959,-359.16715382,0.00019178,2]
[368018405,1750995032968,-460.0,0.00019178,2]
[368018406,1750995032977,-502.28678515,0.00019178,2]
[368018407,1750995032987,-435.1526284,0.00019178,2]
[368018408,1750995032996,-460.0,0.00019178,2]
[368018409,1750995033005,-460.0,0.00019178,2]
[368018410,1750995033014,-460.0,0.00019178,2]
[368018411,1750995033023,-460.0,0.00019178,2]
[368018412,1750995033033,-460.0,0.00019178,2]
[368018413,1750995033044,-460.0,0.00019178,2]
[368018414,1750995033054,-503.01532941,0.00019178,2]
[368018415,1750995033063,-460.0,0.00019178,2]
[368018416,1750995033073,-461.07792064,0.00019178,2]
[368018417,1750995033082,-520.71000127,0.00019178,2]
[368018418,1750995033092,-460.0,0.00019178,2]
[368018419,1750995033102,-233.24355523,0.00019178,2]
[368018420,1750995033112,-400.0,0.00019178,2]
[368018421,1750995033121,-589.21893095,0.00019178,2]
[368018422,1750995033131,-460.0,0.00019178,2]
[368018423,1750995033141,-350.0,0.00019178,2]
[368018424,1750995033150,-370.0,0.00019178,2]
[368018425,1750995033160,-401.75438148,0.00019178,2]
[368018426,1750995033170,-400.0,0.00019178,2]
[368018427,1750995033179,-460.0,0.00019178,2]
[368018428,1750995033189,-399.28086384,0.00019178,2]
[368018429,1750995033199,-460.0,0.00019178,2]